Cogmind - Beta 17 @@@ ROGUE MODE // 2026.07.09 @ 01:01:06 Player: obl-vn Result: Destroyed by X-77 Beamer with Gatling Laser Performance ------------- Evolutions (7) 3500 Regions Visited (14) 2800 Robots Destroyed (16) 80 Value Destroyed (330) 330 Prototype IDs (17) 340 Alien Tech Used (0) 0 Bonus (0) 0 TOTAL SCORE: 7050 Bonus ------- None Cogmind --------- Core Integrity 0/1300 Matter 300/300 Energy 99/100 System Corruption 0% Temperature Cool (27) Movement Core (50) Location -3/Research Parts ------- > --- POWER (1) -------- (None) > --- PROPULSION (16) -- (None) > --- UTILITY (2) ------ Self-contained Transmogrifier > --- WEAPON (2) ------- (None) > --- INVENTORY (5) ---- High-capacity Matter Pod (200) Advanced Signal Interpreter Improved System Shield Peak State ------------ > --- POWER ------------ (None) > --- PROPULSION ------- Medium Treads Medium Treads Medium Treads Medium Treads Improved Medium Treads Spiked Medium Treads Spiked Medium Treads Spiked Medium Treads Armored Medium Treads Armored Medium Treads Armored Medium Treads Heavy Treads > --- UTILITY ---------- Self-contained Transmogrifier > --- WEAPON ----------- Mass Driver > --- INVENTORY -------- High-capacity Matter Pod [Rating: 81] Favorites ----------- Power None Propulsion Medium Treads Treads Medium Treads Leg Improved Carbon-fiber Leg Wheel Armored Huge Wheel Flight Unit Cooled VTOL Module Utility Self-contained Transmogrifier Device Self-contained Transmogrifier Processor Improved Signal Interpreter Hackware Hacking Suite Protection Layered Light Armor Plating Weapon Small Laser Energy Gun Small Laser Ballistic Gun Subdweller Machine Gun Ballistic Cannon Battle Cannon Impact Weapon Heavy Flail Slashing Weapon Chainsword Build | -11 -10 -10 -8 -7 -6 -6 -6 -5 -5 -5 -4 -4 -4 -3 ------- Run | Yrd Mat Sub Mat Fac Fac Was Fac Fac Upp Upp Fac Was Fac Res Slots Evolved 14 | . . . 4 2 2 . . 2 . . 2 . . 2 Power . | . . . . . . . . . . . . . . . Propulsion 14 | . . . 4 2 2 . . 2 . . 2 . . 2 Utility . | . . . . . . . . . . . . . . . Weapon . | . . . . . . . . . . . . . . . Parts Attached 40 | 4 1 6 7 8 7 . 1 1 3 . 2 . . . Power . | . . . . . . . . . . . . . . . Engine . | . . . . . . . . . . . . . . . Core . | . . . . . . . . . . . . . . . Reactor . | . . . . . . . . . . . . . . . Propulsion 26 | 2 1 1 3 6 7 . 1 1 3 . 1 . . . Treads 10 | 2 1 1 2 . . . 1 . 2 . 1 . . . Leg 9 | . . . . 5 2 . . 1 1 . . . . . Wheel 7 | . . . 1 1 5 . . . . . . . . . Hover . | . . . . . . . . . . . . . . . Flight . | . . . . . . . . . . . . . . . Utility 4 | . . . 3 1 . . . . . . . . . . Device 1 | . . . 1 . . . . . . . . . . . Storage . | . . . . . . . . . . . . . . . Processor 2 | . . . 1 1 . . . . . . . . . . Hackware 1 | . . . 1 . . . . . . . . . . . Protection . | . . . . . . . . . . . . . . . Artifact . | . . . . . . . . . . . . . . . Weapon 10 | 2 . 5 1 1 . . . . . . 1 . . . Energy Gun 4 | 2 . 2 . . . . . . . . . . . . Energy Cannon . | . . . . . . . . . . . . . . . Ballistic Gun 2 | . . 2 . . . . . . . . . . . . Ballistic Cannon 2 | . . 1 . . . . . . . . 1 . . . Launcher . | . . . . . . . . . . . . . . . Special Weapon . | . . . . . . . . . . . . . . . Impact Weapon 1 | . . . 1 . . . . . . . . . . . Slashing Weapon 1 | . . . . 1 . . . . . . . . . . Piercing Weapon . | . . . . . . . . . . . . . . . Special Melee Weapon . | . . . . . . . . . . . . . . . Unidentified Prototypes 1 | . . . 1 . . . . . . . . . . . Parts Lost 18 | . . 4 1 1 1 . . . 1 . 1 . . 9 Power . | . . . . . . . . . . . . . . . Propulsion 16 | . . 2 1 1 1 . . . 1 . 1 . . 9 Utility . | . . . . . . . . . . . . . . . Weapon 2 | . . 2 . . . . . . . . . . . . Highest Loss Streak 9 | . . 3 1 1 1 . . . 1 . 1 . . 9 To Critical Strikes 2 | . . . . . . . . . . . . . . 2 Average Backups 2 | . 3 4 3 4 4 5 5 4 2 3 1 1 1 2 Power . | . . . . . . . . . . . . . . . Propulsion . | . 1 1 . 1 2 3 3 2 . 1 . . . . Utility 1 | . . 1 1 1 1 1 1 1 1 1 1 1 1 2 Weapon 1 | . . 2 1 1 1 1 1 1 1 1 . . . . Tool/Special . | . . . . . . . . . . . . . . . Unused Backups 4 | . . . . 1 . . . . . . . . . 3 Power . | . . . . . . . . . . . . . . . Propulsion . | . . . . . . . . . . . . . . . Utility 4 | . . . . 1 . . . . . . . . . 3 Weapon . | . . . . . . . . . . . . . . . Tool/Special . | . . . . . . . . . . . . . . . Average Slot Usage (%) 59 | . 57 43 53 60 64 54 60 56 66 70 65 63 63 46 Treads 34 | . 28 28 21 7 4 . 2 5 46 64 60 57 57 41 Leg 5 | . . . 8 32 36 . . 4 3 . . . . . Wheel 3 | . . . 4 5 7 24 20 17 4 . . . . . Flight 2 | . . . . . 1 16 23 17 3 . . . . . Device 3 | . . . 9 7 6 6 6 5 5 5 5 5 5 4 Energy Gun 5 | . 28 9 . . . . . . . . . . . . Peak Build Rating 81 | 4 4 6 28 47 57 58 58 65 73 72 81 72 72 78 Average Rating 44 | 2 4 3 23 36 50 56 57 60 67 72 73 72 71 64 On Entrance 45 | . 4 4 3 28 47 56 58 58 65 72 72 72 72 71 Avg Prop Armor Cover (%) 39 | 33 16 35 44 41 44 41 43 44 44 48 48 48 48 47 Naked Turns . | . . . . . . . . . . . . . . . Heaviest Build 8 | 3 3 8 3 4 3 3 3 3 3 . . . . . Greatest Support 128 | 3 20 40 30 30 14 26 3 3 128 3 3 3 3 13 Greatest Overweight (x) 1 | . . 1 . 1 . . . . . . . . . . Average Overweight (x) . | . . . . . . . . . . . . . . . Largest Inventory Capacity 5 | 5 5 5 5 5 5 5 5 5 5 5 5 5 5 5 Average Capacity 5 | 5 5 5 5 5 5 5 5 5 5 5 5 5 5 5 Most Carried 5 | 2 4 5 5 5 5 5 5 5 4 3 2 1 1 3 Average Carried 2 | . 3 4 3 4 4 5 5 4 2 3 1 1 1 2 Final Capacity 5 | 5 5 5 5 5 5 5 5 5 5 5 5 5 5 5 Final Carried 5 | . 4 5 4 5 5 5 5 3 3 3 1 1 1 3 Transmogrified Parts 61 | . . . 3 9 2 2 2 . 35 . 2 . 1 5 Integrity Recovered 1086 | . . . . 29 6 24 7 . 761 . 32 . 49 178 Class Distribution -------------------- 93% | Mutant 6% | Derelict-Mutant Dominant Class ---------------- Mutant | -10/Materials Mutant | -10/Subcaves Mutant | -8/Materials Mutant | -7/Factory Mutant | -6/Factory Mutant | -6/Waste Mutant | -6/Factory Mutant | -5/Factory Mutant | -5/Upper Caves Mutant | -5/Upper Caves Mutant | -4/Factory Derelict-Mutant | -4/Waste Mutant | -4/Factory Mutant | -3/Research Resources | -11 -10 -10 -8 -7 -6 -6 -6 -5 -5 -5 -4 -4 -4 -3 ----------- Run | Yrd Mat Sub Mat Fac Fac Was Fac Fac Upp Upp Fac Was Fac Res Matter Collected 869 | 142 308 123 93 . . . . . 156 . . . . 47 Remotely . | . . . . . . . . . . . . . . . Salvage Created 591 | . 347 102 74 . . . . . 68 . . . . . Parts 24 | . 12 7 2 . . . . . 3 . . . . . Haulers Intercepted 2 | . 2 . . . . . . . . . . . . . Recyclers Shooed . | . . . . . . . . . . . . . . . Parts Field Recycled . | . . . . . . . . . . . . . . . Retrieved Matter . | . . . . . . . . . . . . . . . Parts Self-Destructed 8 | . . 8 . . . . . . . . . . . . Prevented . | . . . . . . . . . . . . . . . Parts Restored . | . . . . . . . . . . . . . . . Kills | -11 -10 -10 -8 -7 -6 -6 -6 -5 -5 -5 -4 -4 -4 -3 ------- Run | Yrd Mat Sub Mat Fac Fac Was Fac Fac Upp Upp Fac Was Fac Res Combat Hostiles Destroyed 9 | . 5 3 1 . . . . . . . . . . . Guns 9 | . 5 3 1 . . . . . . . . . . . Classes Destroyed 10 | . 5 1 3 . . . . . 1 . . . . . Worker 2 | . 1 . 1 . . . . . . . . . . . Builder 1 | . . . 1 . . . . . . . . . . . Tunneler 1 | . . . 1 . . . . . . . . . . . Hauler 2 | . 2 . . . . . . . . . . . . . Recycler 1 | . 1 . . . . . . . . . . . . . Swarmer 3 | . 3 . . . . . . . . . . . . . Grunt 2 | . 2 . . . . . . . . . . . . . Sentry 1 | . . . 1 . . . . . . . . . . . Subdweller 3 | . . 3 . . . . . . . . . . . . Samaritan 2 | . . . . . . . . . 2 . . . . . Best Kill Streak 2 | . 2 1 2 . . . . . . . . . . . Combat Bots Only 2 | . 2 1 1 . . . . . . . . . . . Max Kills in Single Turn 1 | . 1 1 1 . . . . . 1 . . . . . Gunslinging . | . . . . . . . . . . . . . . . Exploded . | . . . . . . . . . . . . . . . Melee . | . . . . . . . . . . . . . . . Uniques/NPCs Destroyed . | . . . . . . . . . . . . . . . Combat | -11 -10 -10 -8 -7 -6 -6 -6 -5 -5 -5 -4 -4 -4 -3 -------- Run | Yrd Mat Sub Mat Fac Fac Was Fac Fac Upp Upp Fac Was Fac Res Hostile Shots Fired 733 | . 22 45 20 39 134 . 25 24 8 5 73 . 6 332 Missed 341 | . 7 24 6 23 53 . 13 7 3 4 27 . 2 172 Hits 392 | . 15 21 14 16 81 . 12 17 5 1 46 . 4 160 Projectile 392 | . 15 21 14 16 81 . 12 17 5 1 46 . 4 160 Critical Strikes 12 | . . 2 . 1 2 . . . . . 1 . . 6 Damage Taken 6741 | . 289 451 213 241 774 . 127 328 127 20 897 . 85 3189 Core 1683 | . 20 66 35 30 74 . 21 63 23 . 23 . 20 1308 Absorbed by Shields . | . . . . . . . . . . . . . . . Core Remaining (%) 89 | 100 . 65 93 95 . . 88 . . 91 . . 96 . Volleys Fired 50 | . 30 13 4 1 . . . . . . 2 . . . Largest 2 | . 2 2 2 1 . . . . . . 1 . . . Hottest 100 | . 90 100 83 33 . . . . . . 47 . . . Shots Fired 90 | . 59 20 8 1 . . . . . . 2 . . . Gun 81 | . 59 18 4 . . . . . . . . . . . Cannon 9 | . . 2 4 1 . . . . . . 2 . . . Launcher . | . . . . . . . . . . . . . . . Special . | . . . . . . . . . . . . . . . Kinetic 18 | . . 11 4 1 . . . . . . 2 . . . Thermal 72 | . 59 9 4 . . . . . . . . . . . Explosive . | . . . . . . . . . . . . . . . Electromagnetic . | . . . . . . . . . . . . . . . Robot Hit Streak 20 | . 9 12 20 . . . . . . . . . . . Robot Miss Streak 2 | . 2 . . . . . . . . . . . . . Penetration Max . | . . . . . . . . . . . . . . . Secondary Targets . | . . . . . . . . . . . . . . . Shots Hit Robots 73 | . 43 12 13 . 1 . . . 4 . . . . . Core Hits 24 | . 15 4 2 1 . . . . 2 . . . . . Critical Kills . | . . . . . . . . . . . . . . . Critical Parts Destroyed . | . . . . . . . . . . . . . . . Critical Strikes 1 | . 1 . . . . . . . . . . . . . Burn 1 | . 1 . . . . . . . . . . . . . Melee Attacks 28 | . . . 9 5 6 . 3 . 5 . . . . . Impact 12 | . . . 9 3 . . . . . . . . . . Slashing 16 | . . . . 2 6 . 3 . 5 . . . . . Piercing . | . . . . . . . . . . . . . . . Sneak Attacks 7 | . . . 3 . . . . . 4 . . . . . Combat Hostiles . | . . . . . . . . . . . . . . . Follow-up Attacks . | . . . . . . . . . . . . . . . Damage Inflicted 1649 | . 628 228 442 5 36 . 2 . 293 . 15 . . . Guns 785 | . 505 228 52 . . . . . . . . . . . Cannons 94 | . . . 94 . . . . . . . . . . . Explosions 123 | . 123 . . . . . . . . . . . . . Melee 616 | . . . 287 . 36 . . . 293 . . . . . Ramming 31 | . . . 9 5 . . 2 . . . 15 . . . Kinetic 182 | . . 88 94 . . . . . . . . . . . Thermal 820 | . 628 140 52 . . . . . . . . . . . Explosive . | . . . . . . . . . . . . . . . Electromagnetic . | . . . . . . . . . . . . . . . Impact 287 | . . . 287 . . . . . . . . . . . Slashing 329 | . . . . . 36 . . . 293 . . . . . Piercing . | . . . . . . . . . . . . . . . Highest Corruption 10 | . . . . . 1 10 10 . . . . 8 8 . Average Corruption 7 | . . . . . 1 6 10 . . . . 8 8 . Corruption Purged . | . . . . . . . . . . . . . . . Corruption Blocked . | . . . . . . . . . . . . . . . Effects 13 | . . . . . 1 1 4 . . . . . 7 . Message Errors 5 | . . . . . 1 1 1 . . . . . 2 . Matter Fused 4 | . . . . . . . 1 . . . . . 3 . Data Loss (minor) 1 | . . . . . . . . . . . . . 1 . Data Loss (major) 1 | . . . . . . . . . . . . . 1 . Misdirections 2 | . . . . . . . 2 . . . . . . . Overload Shots . | . . . . . . . . . . . . . . . Overflow Damage 185 | . . . 125 . . . . . 60 . . . . . Projectiles . | . . . . . . . . . . . . . . . Explosions . | . . . . . . . . . . . . . . . Melee 185 | . . . 125 . . . . . 60 . . . . . Knockbacks 2 | . . . 1 . . . . . . . 1 . . . Impact 2 | . . . 1 . . . . . . . 1 . . . Kinetic . | . . . . . . . . . . . . . . . Secondary . | . . . . . . . . . . . . . . . Self-Inflicted Damage 126 | . 114 . 4 2 . . 1 . . . 5 . . . Shots 1 | . 1 . . . . . . . . . . . . . Rammed 10 | . . . 1 1 . . 1 . . . 7 . . . Targets Rammed 10 | . . . 1 1 . . 1 . . . 7 . . . Kicked . | . . . . . . . . . . . . . . . Crushed . | . . . . . . . . . . . . . . . Highest Temperature 216 | . 216 21 5 . 11 . . . . . 3 . . . Average Temperature 54 | . 60 14 3 . 11 . . . . . 3 . . . Received Heat Transfer 967 | . 84 111 63 54 192 . 24 90 27 . 99 . . 223 Siege Activations . | . . . . . . . . . . . . . . . Martial Activations . | . . . . . . . . . . . . . . . Shielding Activations . | . . . . . . . . . . . . . . . Robots Disrupted . | . . . . . . . . . . . . . . . Combat Hostiles . | . . . . . . . . . . . . . . . Robots Corrupted 2 | . . . 2 . . . . . . . . . . . Combat Hostiles . | . . . . . . . . . . . . . . . Parts Fried 1 | . . . 1 . . . . . . . . . . . Impact Corruptions 4 | . . . 4 . . . . . . . . . . . Robots Melted . | . . . . . . . . . . . . . . . Combat Hostiles . | . . . . . . . . . . . . . . . Parts Melted 5 | . 4 1 . . . . . . . . . . . . Heat Transferred 1897 | . 1513 236 148 . . . . . . . . . . . Parts Sabotaged . | . . . . . . . . . . . . . . . Parts Stolen . | . . . . . . . . . . . . . . . Parts Stripped . | . . . . . . . . . . . . . . . Power Chain Reactions . | . . . . . . . . . . . . . . . Alert | -11 -10 -10 -8 -7 -6 -6 -6 -5 -5 -5 -4 -4 -4 -3 ------- Run | Yrd Mat Sub Mat Fac Fac Was Fac Fac Upp Upp Fac Was Fac Res Maximum Alert Level 1 | . . . . . . . . . . . . . . 1 Low Security (%) 95 | 100 100 . 100 100 100 100 100 100 . . 100 100 100 65 Level 1 4 | . . . . . . . . . . . . . . 34 Level 2 . | . . . . . . . . . . . . . . . Level 3 . | . . . . . . . . . . . . . . . Level 4 . | . . . . . . . . . . . . . . . Level 5 . | . . . . . . . . . . . . . . . High Security . | . . . . . . . . . . . . . . . Max Security . | . . . . . . . . . . . . . . . Peak Influence 295 | . 107 . 55 65 50 7 9 30 . . 30 7 30 295 Initial 11 | . . . . 11 1 7 . . . . . 7 . 7 Average 28 | . 25 . 21 14 19 3 . 6 . . 2 2 5 126 Influence Increases 1104 | . 238 . 113 134 80 . 12 30 15 . 32 . 60 390 Destroy 0b10 Robot/C 120 | . 100 . 20 . . . . . . . . . . . Destroy 0b10 Robot/NC 35 | . 20 . 15 . . . . . . . . . . . Destroy Leader 34 | . 24 . 10 . . . . . . . . . . . Successful Hack 30 | . 6 . 6 9 . . 9 . . . . . . . Disable Machine 45 | . 15 . 15 15 . . . . . . . . . . Destroy Structure 45 | . 28 . 2 5 5 . 3 . . . 2 . . . Partial Spotted 90 | . . . 15 15 15 . . . . . . . 15 30 Lose Combat Pursuer 705 | . 45 . 30 90 60 . . 30 15 . 30 . 45 360 Influence Decreases 994 | . 205 33 86 158 63 20 12 20 25 . 12 20 45 295 Entered New Map 73 | . . 17 . 16 2 13 . . 4 . . 13 . 8 Time Decay 701 | . 205 16 76 132 51 7 12 20 21 . 12 7 45 97 Search Patrol Dispatched 100 | . . . . . . . . . . . . . . 100 Lost Part 120 | . . . 10 10 10 . . . . . . . . 90 Squads Dispatched 7 | . . . . . 1 . 1 2 . . 1 . . 2 Investigation 3 | . . . . . 1 . . 1 . . 1 . . . Extermination 1 | . . . . . . . . . . . . . . 1 Reinforcement 3 | . . . . . . . 1 1 . . . . . 1 Assault . | . . . . . . . . . . . . . . . Garrison . | . . . . . . . . . . . . . . . Intercept . | . . . . . . . . . . . . . . . Searches Triggered 1 | . . . . . . . . . . . . . . 1 Construction Impeded . | . . . . . . . . . . . . . . . Haulers Reinforced . | . . . . . . . . . . . . . . . Active Scanning Responses . | . . . . . . . . . . . . . . . Cargo Convoy Interrupts 1 | . . . . . . . . . . . . . . 1 Stealth | -11 -10 -10 -8 -7 -6 -6 -6 -5 -5 -5 -4 -4 -4 -3 --------- Run | Yrd Mat Sub Mat Fac Fac Was Fac Fac Upp Upp Fac Was Fac Res Distress Signals 5 | . 1 . . . . . . . . . 2 . . 2 Communications Jammed . | . . . . . . . . . . . . . . . Distress Signals . | . . . . . . . . . . . . . . . Times Spotted 153 | . 13 11 6 13 12 5 3 5 1 3 17 6 6 52 Peak Tracking Total 23 | . 5 3 3 8 9 5 1 7 1 3 16 6 3 23 Tactical Retreats 24 | . 2 6 1 3 2 . . 1 1 . 1 . 2 5 Traps | -11 -10 -10 -8 -7 -6 -6 -6 -5 -5 -5 -4 -4 -4 -3 ------- Run | Yrd Mat Sub Mat Fac Fac Was Fac Fac Upp Upp Fac Was Fac Res Traps Triggered 7 | . . . . 2 1 . . . . . 2 . . 2 Indirectly . | . . . . . . . . . . . . . . . Trap Hack Attempts . | . . . . . . . . . . . . . . . Triggered . | . . . . . . . . . . . . . . . Disarmed . | . . . . . . . . . . . . . . . Reprogrammed . | . . . . . . . . . . . . . . . Reused . | . . . . . . . . . . . . . . . Traps Extracted . | . . . . . . . . . . . . . . . Installed . | . . . . . . . . . . . . . . . Triggered . | . . . . . . . . . . . . . . . Machines | -11 -10 -10 -8 -7 -6 -6 -6 -5 -5 -5 -4 -4 -4 -3 ---------- Run | Yrd Mat Sub Mat Fac Fac Was Fac Fac Upp Upp Fac Was Fac Res Machines Disabled 3 | . 1 . 1 1 . . . . . . . . . . Max in Single Turn 1 | . 1 . 1 1 . . . . . . . . . . Garrison Access 1 | . . . . . 1 . . . . . . . . . Machines Repaired . | . . . . . . . . . . . . . . . Machines Dismantled . | . . . . . . . . . . . . . . . Machines Sabotaged . | . . . . . . . . . . . . . . . Overloaded Fab Kills . | . . . . . . . . . . . . . . . Hacking | -11 -10 -10 -8 -7 -6 -6 -6 -5 -5 -5 -4 -4 -4 -3 --------- Run | Yrd Mat Sub Mat Fac Fac Was Fac Fac Upp Upp Fac Was Fac Res Machines Accessed 12 | . 1 2 2 1 2 . 1 1 . . . . 2 . Terminals 8 | . 1 . 2 1 1 . 1 1 . . . . 1 . Fabricators . | . . . . . . . . . . . . . . . Repair Stations . | . . . . . . . . . . . . . . . Recycling Units . | . . . . . . . . . . . . . . . Scanalyzers . | . . . . . . . . . . . . . . . Garrison Access 2 | . . . . . 1 . . . . . . . 1 . Total Hacks 28 | . 3 6 4 2 4 . 1 4 . . . . 4 . Successful 12 | . 2 6 1 1 1 . 1 . . . . . . . Failed 16 | . 1 . 3 1 3 . . 4 . . . . 4 . Catastrophic 4 | . . . . 1 1 . . 2 . . . . . . Database Lockouts . | . . . . . . . . . . . . . . . Manual 13 | . 1 . 2 2 2 . 1 4 . . . . 1 . Terminals 17 | . 3 . 4 2 2 . 1 4 . . . . 1 . Fabricators . | . . . . . . . . . . . . . . . Repair Stations . | . . . . . . . . . . . . . . . Recycling Units . | . . . . . . . . . . . . . . . Scanalyzers . | . . . . . . . . . . . . . . . Garrison Access 5 | . . . . . 2 . . . . . . . 3 . Terminal Hacks 11 | . 2 6 1 1 . . 1 . . . . . . . Record 5 | . . 5 . . . . . . . . . . . . Level Access Points 2 | . . . . 1 . . 1 . . . . . . . Branch Access Points 1 | . . . 1 . . . . . . . . . . . Locate Traps 1 | . 1 . . . . . . . . . . . . . Zone Layout 1 | . 1 . . . . . . . . . . . . . Proto ID Catalog 1 | . . 1 . . . . . . . . . . . . Fabricator Hacks . | . . . . . . . . . . . . . . . Repair Station Hacks . | . . . . . . . . . . . . . . . Recycling Unit Hacks . | . . . . . . . . . . . . . . . Scanalyzer . | . . . . . . . . . . . . . . . Garrison Access Hacks 1 | . . . . . 1 . . . . . . . . . Seal Access 1 | . . . . . 1 . . . . . . . . . Unauthorized Hacks . | . . . . . . . . . . . . . . . Terminals . | . . . . . . . . . . . . . . . Fabricators . | . . . . . . . . . . . . . . . Repair Stations . | . . . . . . . . . . . . . . . Recycling Units . | . . . . . . . . . . . . . . . Scanalyzers . | . . . . . . . . . . . . . . . Garrison Access . | . . . . . . . . . . . . . . . Data Cores Recovered . | . . . . . . . . . . . . . . . Used . | . . . . . . . . . . . . . . . Hacking Detections 9 | . 1 . 2 1 2 . . 1 . . . . 2 . Full Trace Events 2 | . . . . . 1 . . 1 . . . . . . Feedback Events . | . . . . . . . . . . . . . . . Feedback Blocked . | . . . . . . . . . . . . . . . Robot Schematics Acquired . | . . . . . . . . . . . . . . . Robots Built . | . . . . . . . . . . . . . . . Authchips . | . . . . . . . . . . . . . . . Time . | . . . . . . . . . . . . . . . Total Robot Build Rating . | . . . . . . . . . . . . . . . Part Schematics Acquired . | . . . . . . . . . . . . . . . Parts Built . | . . . . . . . . . . . . . . . Authchips . | . . . . . . . . . . . . . . . Time . | . . . . . . . . . . . . . . . Total Part Build Rating . | . . . . . . . . . . . . . . . Part Studies Acquired . | . . . . . . . . . . . . . . . Parts Repaired . | . . . . . . . . . . . . . . . Time . | . . . . . . . . . . . . . . . Parts Recycled . | . . . . . . . . . . . . . . . Recycled Matter . | . . . . . . . . . . . . . . . Retrieved Matter . | . . . . . . . . . . . . . . . Retrieved Components . | . . . . . . . . . . . . . . . Parts Scanalyzed . | . . . . . . . . . . . . . . . Part Schematics Acquired . | . . . . . . . . . . . . . . . Parts Damaged . | . . . . . . . . . . . . . . . Bothacking | -11 -10 -10 -8 -7 -6 -6 -6 -5 -5 -5 -4 -4 -4 -3 ------------ Run | Yrd Mat Sub Mat Fac Fac Was Fac Fac Upp Upp Fac Was Fac Res Used RIF Installer . | . . . . . . . . . . . . . . . Robots Hacked . | . . . . . . . . . . . . . . . Non-combat . | . . . . . . . . . . . . . . . Combat . | . . . . . . . . . . . . . . . Robot Hacks Applied . | . . . . . . . . . . . . . . . Relay Couplers Released . | . . . . . . . . . . . . . . . Fabnet Peak Effective % . | . . . . . . . . . . . . . . . Robots Rewired . | . . . . . . . . . . . . . . . Allies Hacked . | . . . . . . . . . . . . . . . Hacks Repelled . | . . . . . . . . . . . . . . . Allies | -11 -10 -10 -8 -7 -6 -6 -6 -5 -5 -5 -4 -4 -4 -3 -------- Run | Yrd Mat Sub Mat Fac Fac Was Fac Fac Upp Upp Fac Was Fac Res Total Allies . | . . . . . . . . . . . . . . . Largest Group . | . . . . . . . . . . . . . . . Highest-Rated Group . | . . . . . . . . . . . . . . . Highest-Rated Ally . | . . . . . . . . . . . . . . . Total Orders . | . . . . . . . . . . . . . . . Ally Attacks . | . . . . . . . . . . . . . . . Total Damage . | . . . . . . . . . . . . . . . Kills . | . . . . . . . . . . . . . . . Allies Corrupted . | . . . . . . . . . . . . . . . Allies Melted . | . . . . . . . . . . . . . . . Intel | -11 -10 -10 -8 -7 -6 -6 -6 -5 -5 -5 -4 -4 -4 -3 ------- Run | Yrd Mat Sub Mat Fac Fac Was Fac Fac Upp Upp Fac Was Fac Res Active Infowar (turns) . | . . . . . . . . . . . . . . . Robot Analysis Total . | . . . . . . . . . . . . . . . Derelict Logs Recovered 3 | . . 2 . . . . . . 1 . . . . . Drone Launches . | . . . . . . . . . . . . . . . Drone Recoveries . | . . . . . . . . . . . . . . . Exploration | -11 -10 -10 -8 -7 -6 -6 -6 -5 -5 -5 -4 -4 -4 -3 ------------- Run | Yrd Mat Sub Mat Fac Fac Was Fac Fac Upp Upp Fac Was Fac Res Turns Passed 5893 | 24 819 936 190 431 149 37 109 88 2366 8 166 56 215 299 Spaces Moved 4905 | 31 474 1336 254 556 225 76 198 171 206 15 275 102 406 580 Core 4434 | 31 55 1335 253 532 223 55 198 171 205 15 275 102 406 578 Treads 421 | . 419 1 . . . . . . 1 . . . . . Legs 3 | . . . 1 2 . . . . . . . . . . Wheels 22 | . . . . 22 . . . . . . . . . . Hover . | . . . . . . . . . . . . . . . Flight 25 | . . . . . 2 21 . . . . . . . 2 Fastest Speed 47 | 50 50 50 50 50 50 47 50 50 50 50 50 50 50 50 Average Speed 64 | 50 147 62 50 65 50 49 50 50 50 50 50 50 50 50 Slowest Speed 240 | 50 160 160 140 140 66 50 50 50 160 50 50 50 50 240 Overloaded Moves 22 | . . . . . 1 21 . . . . . . . . Propulsion Burnouts . | . . . . . . . . . . . . . . . Robots Hopped 2 | . . . . . 1 . . . . . . . . 1 Potential Cave-ins . | . . . . . . . . . . . . . . . Cave-ins Triggered . | . . . . . . . . . . . . . . . Exploration Rate (%) 29 | 4 44 71 27 20 9 74 8 8 37 4 11 88 14 26 Regions Visited 14 Branch Regions 3 Pre-discovered Areas . | . . . . . . . . . . . . . . . Known Exits Taken 3 | . . . 1 1 . . 1 . . . . . . . Unknown Exits Taken 7 | 1 1 1 . . . . . 1 1 1 . . 1 . Scrap Searched 6 | . . 5 . . . . . . 1 . . . . . Spaces Dug 18 | . . . 2 5 5 . 3 . 1 . 2 . . . Terrain Destroyed 57 | . 39 . 2 5 5 . 3 . 1 . 2 . . . Melee 16 | . . . 2 5 5 . 3 . 1 . . . . . Projectile 2 | . . . . . . . . . . . 2 . . . AOE 39 | . 39 . . . . . . . . . . . . . Terrain Rammed . | . . . . . . . . . . . . . . . Walls Destroyed . | . . . . . . . . . . . . . . . Machines Disabled . | . . . . . . . . . . . . . . . Actions | -11 -10 -10 -8 -7 -6 -6 -6 -5 -5 -5 -4 -4 -4 -3 --------- Run | Yrd Mat Sub Mat Fac Fac Was Fac Fac Upp Upp Fac Was Fac Res Total 7479 | 38 535 1415 295 612 253 75 203 172 2461 14 299 106 417 584 Wait 2383 | . 27 40 10 28 6 . . . 2242 . 10 5 12 3 Move 4890 | 30 473 1335 253 555 223 75 198 170 205 14 275 101 405 578 Hop 2 | . . . . . 1 . . . . . . . . 1 Pick Up 32 | 4 4 6 6 5 1 . . . 3 . 1 . . 2 Fast Attach 13 | . . 1 . 6 5 . 1 . . . . . . . Attach 33 | 4 . 8 9 3 2 . . 2 3 . 2 . . . Detach 10 | . . 6 2 1 1 . . . . . . . . . Swap 2 | . 1 1 . . . . . . . . . . . . Drop 26 | . . 4 1 7 8 . 1 . 3 . 2 . . . Fire 50 | . 30 13 4 1 . . . . . . 2 . . . Melee 28 | . . . 9 5 6 . 3 . 5 . . . . . Ram 3 | . . . 1 1 . . . . . . 1 . . . Kick . | . . . . . . . . . . . . . . . Crush 6 | . . . . . . . . . . . 6 . . . Escape Stasis . | . . . . . . . . . . . . . . . Rewire 1 | . . 1 . . . . . . . . . . . . Trap . | . . . . . . . . . . . . . . . Miscellaneous . | . . . . . . . . . . . . . . . Route ------- -11/Scrapyard -10/Materials (discovered 2 exits: [*Mat] / *Sub) -10/Subcaves (discovered 3 exits: *Mat x2 / Rec) -8/Materials -7/Factory (discovered 4 exits: *Fac x4) -6/Factory -6/Waste -6/Factory (discovered 4 exits: *Fac x4) -5/Factory -5/Upper Caves -5/Upper Caves -4/Factory -4/Waste -4/Factory -3/Research (discovered 1 exit: [*Res]) History --------- Turn | Location | Event 2 | -11/Scrapyard | Met Revision 17 5 | -11/Scrapyard | Discovered new exit (range 14) 25 | -11/Scrapyard | Entered Materials 211 | -10/Materials | Discovered new exit (range 16) 306 | -10/Materials | Build established: Mutant 841 | -10/Materials | Discovered new exit (range 6) 844 | -10/Materials | Entered Subcaves 845 | -10/Subcaves | Approached by a straggling Scientist 851 | -10/Subcaves | Shifting Twisted Machinery released Sub. Machine Gun 851 | -10/Subcaves | Shifting Twisted Machinery released Sub. Laser 871 | -10/Subcaves | Ambushed by Subdwellers from Twisted Machinery 945 | -10/Subcaves | A swath of the cavern ceiling suddenly collapsed 1146 | -10/Subcaves | Learned Materials interactive machine intel 1318 | -10/Subcaves | Discovered new exit (range 6) 1327 | -10/Subcaves | Lost 3 parts (1n2w) 1552 | -10/Subcaves | Discovered new exit (range 14) 1571 | -10/Subcaves | Disturbed a concealed Subdweller 1613 | -10/Subcaves | Visited Clippyterm 1615 | -10/Subcaves | Identified exit to Recycling 1615 | -10/Subcaves | Learned Research machine intel 1697 | -10/Subcaves | Learned 4 Materials zone layouts 1727 | -10/Subcaves | Visited 4L-MR0's lab 1731 | -10/Subcaves | Found Prototype Device 1780 | -10/Subcaves | Entered Materials 1780 | -8/Materials | Evolved 4 slots: Propulsion x4 1781 | -8/Materials | Identified exit to Factory 1782 | -8/Materials | Loaded intel: 19 interactive machine locations 1790 | -8/Materials | Identified Sfc. Transmogrifier 1970 | -8/Materials | Entered Factory 1970 | -7/Factory | Evolved 2 slots: Propulsion x2 2382 | -7/Factory | Identified exit to Factory 2401 | -7/Factory | Entered another Factory area 2401 | -6/Factory | Evolved 2 slots: Propulsion x2 2547 | -6/Factory | Spotted B-75 Beast 2550 | -6/Factory | Sucked down chute 2550 | -6/Factory | Entered Waste 2564 | -6/Waste | Spotted C-40 Crusher 2565 | -6/Waste | EMP discharged 2565 | -6/Waste | System corruption reached 10% 2567 | -6/Waste | Spotted C-40 Crusher 2567 | -6/Waste | Spotted C-40 Crusher 2572 | -6/Waste | Spotted C-40 Crusher 2573 | -6/Waste | Spotted C-40 Crusher 2582 | -6/Waste | Discovered new exit (range 11) 2587 | -6/Waste | Entered Factory 2665 | -6/Factory | Identified exit to Factory 2696 | -6/Factory | Entered another Factory area 2696 | -5/Factory | Evolved 2 slots: Propulsion x2 2756 | -5/Factory | Discovered new exit (range 5) 2784 | -5/Factory | Entered Upper Caves 2804 | -5/Upper Caves | Learned Factory emergency access door positions 2817 | -5/Upper Caves | Attracted the attention of an 0b10 checkpoint 2822 | -5/Upper Caves | Spotted B-75 Beast 2879 | -5/Upper Caves | Discovered new exit (range 13) 5150 | -5/Upper Caves | Entered another Upper Caves area 5151 | -5/Upper Caves | Discovered new exit (range 13) 5152 | -5/Upper Caves | Attracted the attention of an 0b10 checkpoint 5158 | -5/Upper Caves | Entered Factory 5158 | -4/Factory | Evolved 2 slots: Propulsion x2 5306 | -4/Factory | Spotted B-86 Titan 5324 | -4/Factory | Sucked down chute 5324 | -4/Factory | Entered Waste 5339 | -4/Waste | EMP discharged 5339 | -4/Waste | Spotted C-40 Crusher 5341 | -4/Waste | Spotted C-40 Crusher 5344 | -4/Waste | Spotted C-40 Crusher 5345 | -4/Waste | Spotted C-40 Crusher 5363 | -4/Waste | Spotted C-40 Crusher 5364 | -4/Waste | Spotted C-40 Crusher 5372 | -4/Waste | Discovered new exit (range 16) 5380 | -4/Waste | Entered Factory 5586 | -4/Factory | Discovered new exit (range 12) 5595 | -4/Factory | Entered Research 5595 | -3/Research | Evolved 2 slots: Propulsion x2 5596 | -3/Research | Loaded intel: 110 machine locations 5672 | -3/Research | Spotted B-86 Titan 5795 | -3/Research | Spotted B-86 Titan 5845 | -3/Research | Search patrols dispatched 5875 | -3/Research | Core integrity fell below 50% 5880 | -3/Research | Discovered new exit (range 15) 5881 | -3/Research | Spotted Striker 5882 | -3/Research | Cargo convoy interrupted 5893 | -3/Research | Lost 9 parts (9n) 5894 | -3/Research | Core integrity fell below 20% 5894 | -3/Research | Destroyed by X-77 Beamer with Gatling Laser Last Messages --------------- 05881_ X-77 Beamer unfolds itself. 05881_ H-77 Assassin unfolds itself. 05881_ I-47 Archangel unfolds itself. 05881_ C-45 Heavy ARC bursts open, deploying its payload. 05881_ Striker unfolds itself. 05881_ P-80 Master unfolds itself. 05881_ X-77 Beamer unfolds itself. 05881_ H-77 Assassin unfolds itself. 05881_ I-47 Archangel unfolds itself. 05881_ Knocked back. 05882_ ALERT: Cargo convoy interrupted, initiating access lockdown. 05882_ H-77 Assassin knocked back. 05890_ Knocked back. 05892_ Penetrated by Slug. 05893_ H-77 Assassin knocked back. 05893_ S-43 Plague knocked back. 05893_ X-77 Beamer knocked back. 05894_ Penetrated by Slug. Map ----- +----------------------------------------------------+ | #######???# % #????????????????????????????????? | | #???# #????????????????????????????????? | | #???# #????????????????????????????????? | | #???#% #????????????????????????????????? | | #???# #????????????????????????????????? | | #???# #????????????????????????????????? | | #???# #????????????????????????????????? | | #######???# % #????????????????????????????????? | | ?## ##???????????????????????????????? | | = ?# #?????#######???????????????????? | | # ####### ##########+?????????? | | """ # ] ?????????? | | """ " H ????????? | | """ # % ??????????? | | # "###### ###?????????????????? | | ?# #?????### ###???????????????????? | | ########?####+"###???????# #?????????????????????? | | ???????????! ?????????# #?????????????????????? | | ????????? ???????# #?????????????????????? | | ??????? ?????# #?????????????????????? | | ??????# #????# #?????????????????????? | | ??????# ""T"" #????# #?????????????????????? | | ??????# """"" !#????# #?????????????????????? | | ??????###############????#A#?????????????????????? | | ???????????"""???######### ########+### ????????? | | ??????????""T""??# @ x x i ??????? | | ??????????""?""??+ x Y %% < ??????? | | ?????????????????# Ks px h h ??????? | | ?????????????????# ####;############ ???????? | | ?????????????????# # [ #?????????????????? | | ?????????????????# + #?????????????????? | | ?????????????????###### #?????????????????? | | ??????????????????????#% #????????????"""??? | | ??????????????????????# ! #????????????"""??? | | ??????????????????????#! #????????????"""??? | | ??????????????????????# #?????????????????? | | ??????????????????????# #?????????????????? | | ??????????????????????# % #?????????????????? | | ??????????????????????##########?????????????????? | | ?????????????????????????????????????????????????? | | ?????????????????????????????????????????????????? | | ?????????????????????????????????????????????????? | | ?????????????????????????????????????????????????? | | ?????????????????????????????????????????????????? | | ?????????????????????????????????????????????????? | | ?????????????????????????????????????????????????? | | ?????????????????????????????????????????????????? | | | | | | | +----------------------------------------------------+ Best States ------------- Heat Dissipation 46 Energy Generation 5 Energy Capacity 100 Matter Stores 300 Matter Capacity 300 Sight Range 16 Terrain Scan Density 10 Armor Coverage 150 Melee Speed Boost 20 Evasion (%) 60 Recoil Reduction 12 Offensive Hacking 10 Item Schematics ----------------- None Robot Schematics ------------------ None Fabricated ------------ Nothing Repaired ---------- Nothing Studied --------- None Alien Tech Used ----------------- None Achievements -------------- None Challenges ------------ None Game ------ Seed BurstBoltMediator Manual? 0 Play Time 00:49:30 Cumulative 139.8 hours Start 2026.07.09 @ 00:11:24 End 2026.07.09 @ 01:01:06 Sessions 1 Manual Loads 0 Difficulty Rogue Special Mode None Game No. 98 Rogue 98 Adventurer 0 Explorer 0 Win Type - Total 2 Types 1/0/0/1/0/0/0/0/0/0 Lore% 48 Gallery% 57 Achievement% 53 Wizard Run 0 Options --------- Layout 2 ASCII 0 Keyboard 0 Movement Mouse Keybinds 0 Fullscreen 1 Font 48/Smallcaps Map View 50x44 Zoom Use 0% Tactical HUD 1 Map Filters NONE Filters NONE Steam 1 RUN: afe49df5-4909-4748-8aab-20f6c97ab454